Cogmind - Beta 15 *** ADVENTURER MODE // 2025.07.17 @ 20:15:32 Player: Olexender Result: Destroyed by Y-64 Sentinel with Wave Gun Performance ------------- Evolutions (4) 2000 Regions Visited (6) 1200 Robots Destroyed (56) 280 Value Destroyed (2174) 2174 Prototype IDs (3) 60 Alien Tech Used (0) 0 Bonus (300) 300 TOTAL SCORE: 6014 Bonus ------- Registered with UFD 300 Cogmind --------- Core Integrity 0/850 Matter 260/300 Energy 27/100 System Corruption 4% Temperature Cool (9) Movement Hovering (130) Ox1 Location -6/Lower Caves Parts ------- > --- POWER (2) -------- (None) > --- PROPULSION (5) --- Carbon-fiber Leg Antigrav System > --- UTILITY (5) ------ Improved Cooling System > --- WEAPON (3) ------- Hypervelocity Gauss Rifle Hypervelocity Gauss Rifle > --- INVENTORY (5) ---- Ion Engine Improved Deuterium Engine Power Amplifier Medium Storage Unit High-capacity Battery (250) Peak State ------------ > --- POWER ------------ Improved Deuterium Engine Cold Fusion Reactor > --- PROPULSION ------- Improved Carbon-fiber Leg Improved Carbon-fiber Leg Improved Carbon-fiber Leg Improved Carbon-fiber Leg Flexi-carbon Leg > --- UTILITY ---------- Improved Heat Sink High-capacity Storage Unit Triangulator Advanced Salvage Targeting Computer Hardened Medium Armor Plating > --- WEAPON ----------- Gatling Laser Gauss Rifle Improved Heavy Machine Gun > --- INVENTORY -------- Ion Engine Makeshift Leg Armored Leg Compact Wheel Improved Heat Sink Medium Storage Unit Large Battery High-capacity Matter Pod Improved Light Armor Plating Cooled Pulse Rifle Gauss Rifle Power Sword DRS Beacon [Rating: 67] Favorites ----------- Power Ion Engine Engine Ion Engine Power Core Light Fission Core Reactor Cold Fusion Reactor Propulsion Aluminum Leg Leg Aluminum Leg Wheel Wheel Hover Unit Antigrav System Utility Improved Heat Sink Device Improved Heat Sink Storage Medium Storage Unit Processor Advanced Salvage Targeting Computer Protection Improved Light Armor Plating Weapon Particle Gun Energy Gun Particle Gun Ballistic Gun Assault Rifle Ballistic Cannon Light Cannon Slashing Weapon Power Sword Build | -11 -10 -10 -10 -9 -6 -6 ------- Run | Yrd Mat Min Sub Scr Fac Low Slots Evolved 8 | . . . . . 8 . Power 1 | . . . . . 1 . Propulsion 3 | . . . . . 3 . Utility 3 | . . . . . 3 . Weapon 1 | . . . . . 1 . Parts Attached 68 | 7 7 1 1 . 38 14 Power 7 | 1 . . . . 5 1 Engine 5 | 1 . . . . 4 . Core 1 | . . . . . . 1 Reactor 1 | . . . . . 1 . Propulsion 22 | 2 3 . 1 . 12 4 Treads . | . . . . . . . Leg 18 | 2 3 . 1 . 9 3 Wheel 3 | . . . . . 3 . Hover 1 | . . . . . . 1 Flight . | . . . . . . . Utility 20 | 1 2 . . . 10 7 Device 11 | . 1 . . . 5 5 Storage 3 | 1 1 . . . 1 . Processor 1 | . . . . . 1 . Hackware . | . . . . . . . Protection 5 | . . . . . 3 2 Artifact . | . . . . . . . Weapon 19 | 3 2 1 . . 11 2 Energy Gun 6 | 1 1 1 . . 3 . Energy Cannon . | . . . . . . . Ballistic Gun 11 | 2 . . . . 7 2 Ballistic Cannon 1 | . 1 . . . . . Launcher . | . . . . . . . Special Weapon . | . . . . . . . Impact Weapon . | . . . . . . . Slashing Weapon 1 | . . . . . 1 . Piercing Weapon . | . . . . . . . Special Melee Weapon . | . . . . . . . Unidentified Prototypes 3 | . . . . . 3 . Parts Lost 41 | . . 1 2 . 23 15 Power 4 | . . . . . 2 2 Propulsion 13 | . . . 1 . 6 6 Utility 12 | . . . . . 8 4 Weapon 12 | . . 1 1 . 7 3 Highest Loss Streak 18 | . . 1 2 . 18 13 To Critical Strikes 1 | . . . . . . 1 Average Backups 8 | 2 6 7 7 8 7 9 Power 1 | . . 1 1 1 1 2 Propulsion 1 | 1 2 2 2 2 1 . Utility 3 | . 1 3 3 3 3 6 Weapon 2 | . 1 1 1 2 1 . Tool/Special . | . . . . . . . Unused Backups 4 | . 1 . . . 1 2 Power . | . . . . . . . Propulsion 1 | . 1 . . . . . Utility 3 | . . . . . 1 2 Weapon . | . . . . . . . Tool/Special . | . . . . . . . Average Slot Usage (%) 79 | . 98 97 100 71 79 67 Engine 11 | . 14 14 14 14 6 9 Reactor 1 | . . . . . 5 . Leg 26 | . 28 28 28 28 26 12 Wheel 1 | . . . . . 1 12 Device 11 | . 12 14 14 14 7 8 Storage 11 | . 14 14 14 14 6 4 Energy Gun 5 | . 14 11 14 . 9 3 Ballistic Gun 3 | . 4 . 9 . 7 10 Ballistic Cannon 1 | . 9 14 4 . . . Peak Build Rating 67 | 6 10 10 13 13 67 50 Average Rating 19 | 4 9 9 12 11 41 35 On Entrance 13 | . 6 10 10 13 11 41 Naked Turns 2 | . . . . . . 2 Heaviest Build 88 | 13 22 22 22 21 88 76 Greatest Support 94 | 20 20 20 30 30 94 71 Greatest Overweight (x) 5 | . 1 1 1 . 4 5 Average Overweight (x) . | . . . . . . 1 Largest Inventory Capacity 20 | 8 10 10 10 10 20 20 Average Capacity 11 | 6 9 10 10 10 13 17 Most Carried 13 | 5 8 8 9 10 13 13 Average Carried 8 | 2 6 7 7 9 8 9 Final Capacity 20 | 8 10 10 10 10 20 5 Final Carried 12 | 3 8 8 7 10 12 5 Class Distribution -------------------- 55% | Mutant 19% | Scavenger-Mutant 13% | Scavenger-Gunner 5% | Tank 3% | Gunner Dominant Class ---------------- Scavenger-Mutant | -10/Materials Scavenger-Mutant | -10/Mines Scavenger-Mutant | -10/Subcaves Mutant | -9/Scraptown Scavenger-Gunner | -6/Factory Scavenger-Gunner | -6/Lower Caves Resources | -11 -10 -10 -10 -9 -6 -6 ----------- Run | Yrd Mat Min Sub Scr Fac Low Matter Collected 1818 | 211 429 66 31 . 822 259 Remotely . | . . . . . . . Salvage Created 2640 | . 541 53 148 . 1677 221 Parts 142 | . 26 3 10 . 95 8 Haulers Intercepted 1 | . . . . . 1 . Recyclers Shooed 2 | . . . . . 2 . Parts Field Recycled . | . . . . . . . Retrieved Matter . | . . . . . . . Parts Self-Destructed 35 | . . . 4 . . 31 Prevented 1 | . . . . . . 1 Kills | -11 -10 -10 -10 -9 -6 -6 ------- Run | Yrd Mat Min Sub Scr Fac Low Combat Hostiles Destroyed 45 | . 14 2 6 . 19 4 Melee 3 | . . . . . 3 . Guns 32 | . 8 . 6 . 14 4 Cannons 8 | . 6 2 . . . . AOE 1 | . . . . . 1 . Classes Destroyed 14 | . 4 . 1 . 9 . Builder 2 | . . . . . 2 . Hauler 1 | . . . . . 1 . Recycler 3 | . 1 . . . 2 . Watcher 5 | . 2 . . . 3 . Swarmer 7 | . 3 . 3 . . 1 Grunt 18 | . 11 2 . . 2 3 Brawler 1 | . . . . . 1 . Duelist 1 | . . . . . 1 . Protector 1 | . . . . . 1 . Sentry 6 | . . . . . 6 . Specialist 2 | . . . . . 2 . Hunter 4 | . . . . . 4 . Programmer 2 | . . . . . 2 . Subdweller 3 | . . . 3 . . . Best Kill Streak 4 | . 4 2 3 . 4 3 Combat Bots Only 3 | . 3 2 3 . 3 3 Max Kills in Single Turn 3 | . 2 1 2 . 3 1 Gunslinging 1 | . . . 1 . . . Exploded 1 | . . . . . 1 . Melee 1 | . . . . . 1 . Uniques/NPCs Destroyed . | . . . . . . . Combat | -11 -10 -10 -10 -9 -6 -6 -------- Run | Yrd Mat Min Sub Scr Fac Low Hostile Shots Fired 731 | . 35 13 29 . 513 141 Missed 253 | . 14 4 6 . 187 42 Hits 478 | . 21 9 23 . 326 99 Melee 20 | . . . . . 6 14 Projectile 458 | . 21 9 23 . 320 85 Critical Strikes 13 | . . . 1 . 4 8 Damage Taken 5839 | . 202 98 297 . 3411 1831 Core 908 | . 4 8 41 . 499 356 Absorbed by Shields . | . . . . . . . Ignored by Resistances 1697 | . 62 29 87 . 1017 502 Core Remaining (%) 89 | 100 . . . 78 . . Volleys Fired 151 | . 35 6 13 . 69 28 Largest 3 | . 2 2 2 . 3 3 Hottest 125 | . 95 95 95 . 125 113 Shots Fired 336 | . 68 10 26 . 186 46 Gun 301 | . 46 4 19 . 186 46 Cannon 35 | . 22 6 7 . . . Launcher . | . . . . . . . Special . | . . . . . . . Kinetic 190 | . 35 6 13 . 95 41 Thermal 130 | . 33 4 13 . 80 . Explosive . | . . . . . . . Electromagnetic 16 | . . . . . 11 5 Robot Hit Streak 23 | . 14 9 16 . 23 22 Robot Miss Streak 3 | . 3 1 1 . 3 1 Penetration Max 1 | . . . . . 1 . Secondary Targets 5 | . 2 . 1 . 2 . Max Gunslinging Chain 1 | . 1 . 1 . 1 . Shots Hit Robots 276 | . 45 9 21 . 161 40 Core Hits 119 | . 22 3 9 . 71 14 Critical Kills 2 | . . . . . 1 1 Critical Parts Destroyed . | . . . . . . . Critical Strikes 7 | . 1 . 1 . 4 1 Burn 4 | . 1 . 1 . 2 . Destroy 2 | . . . . . 1 1 Sever 1 | . . . . . 1 . Melee Attacks 8 | . . . . . 8 . Impact . | . . . . . . . Slashing 8 | . . . . . 8 . Piercing . | . . . . . . . Sneak Attacks . | . . . . . . . Combat Hostiles . | . . . . . . . Follow-up Attacks . | . . . . . . . Damage Inflicted 5801 | . 710 151 332 . 3900 708 Guns 4244 | . 472 42 232 . 2797 701 Cannons 447 | . 238 109 100 . . . Explosions 834 | . . . . . 834 . Melee 269 | . . . . . 269 . Ramming 7 | . . . . . . 7 Kinetic 2655 | . 365 109 160 . 1445 576 Thermal 2521 | . 345 42 172 . 1962 . Explosive . | . . . . . . . Electromagnetic 349 | . . . . . 224 125 Impact . | . . . . . . . Slashing 269 | . . . . . 269 . Piercing . | . . . . . . . Highest Corruption 4 | . . . . . 4 4 Average Corruption 4 | . . . . . 4 4 Corruption Purged . | . . . . . . . Corruption Blocked . | . . . . . . . Effects 12 | . . . . . 2 10 Message Errors 4 | . . . . . . 4 Matter Fused 3 | . . . . . 1 2 Heat Flow Errors 1 | . . . . . . 1 Energy Discharges 1 | . . . . . . 1 Parts Rejected 1 | . . . . . . 1 Weapon Failures 2 | . . . . . 1 1 Overload Shots . | . . . . . . . Overflow Damage 154 | . . . . . 154 . Projectiles . | . . . . . . . Explosions 154 | . . . . . 154 . Melee . | . . . . . . . Knockbacks 3 | . 2 . 1 . . . Impact . | . . . . . . . Kinetic 3 | . 2 . 1 . . . Secondary . | . . . . . . . Self-Inflicted Damage 36 | . . . . . 36 . Shots 3 | . . . . . 3 . Rammed . | . . . . . . . Targets Rammed 8 | . . . . . . 8 Kicked 8 | . . . . . . 8 Crushed . | . . . . . . . Highest Temperature 175 | . 42 15 . . 26 175 Average Temperature 33 | . 18 8 . . 8 101 Received Heat Transfer 1087 | . 129 75 90 . 423 370 Siege Activations . | . . . . . . . Martial Activations . | . . . . . . . Shielding Activations . | . . . . . . . Robots Disrupted . | . . . . . . . Combat Hostiles . | . . . . . . . Robots Corrupted . | . . . . . . . Combat Hostiles . | . . . . . . . Parts Fried 2 | . . . . . 2 . Impact Corruptions . | . . . . . . . Robots Melted 1 | . . . . . 1 . Combat Hostiles 1 | . . . . . 1 . Parts Melted 9 | . 1 . . . 8 . Heat Transferred 4269 | . 878 87 481 . 2823 . Parts Sabotaged . | . . . . . . . Parts Stolen . | . . . . . . . Parts Stripped . | . . . . . . . Power Chain Reactions . | . . . . . . . Alert | -11 -10 -10 -10 -9 -6 -6 ------- Run | Yrd Mat Min Sub Scr Fac Low Maximum Alert Level 1 | . . . . . 1 . Low Security (%) 98 | 100 100 100 . . 98 . Level 1 1 | . . . . . 1 . Level 2 . | . . . . . . . Level 3 . | . . . . . . . Level 4 . | . . . . . . . Level 5 . | . . . . . . . High Security . | . . . . . . . Max Security . | . . . . . . . Peak Influence 203 | . 159 73 . . 203 . Initial 33 | . . 33 . . . . Average 76 | . 86 52 . . 75 . Influence Increases 1264 | . 381 50 70 . 673 90 Destroy 0b10 Robot/C 820 | . 280 40 60 . 360 80 Destroy 0b10 Robot/NC 60 | . 15 . . . 45 . Destroy Leader 192 | . 54 10 10 . 108 10 Successful Hack 17 | . 17 . . . . . Disable Machine 81 | . . . . . 81 . Destroy Structure 79 | . . . . . 79 . Lose Combat Pursuer 15 | . 15 . . . . . Influence Decreases 1264 | . 280 98 123 . 540 223 Entered New Map 160 | . . 68 32 . . 60 Time Decay 824 | . 280 20 91 . 310 123 Lost Part 280 | . . 10 . . 230 40 Squads Dispatched 9 | . 3 . . . 6 . Investigation 4 | . 3 . . . 1 . Extermination 2 | . . . . . 2 . Reinforcement . | . . . . . . . Assault . | . . . . . . . Garrison 3 | . . . . . 3 . Intercept . | . . . . . . . Searches Triggered . | . . . . . . . Construction Impeded . | . . . . . . . Haulers Reinforced . | . . . . . . . Active Scanning Responses . | . . . . . . . Cargo Convoy Interrupts 1 | . . . . . 1 . Stealth | -11 -10 -10 -10 -9 -6 -6 --------- Run | Yrd Mat Min Sub Scr Fac Low Distress Signals 3 | . 1 . . . 2 . Communications Jammed . | . . . . . . . Distress Signals . | . . . . . . . Times Spotted 68 | . 20 2 7 . 26 13 Peak Tracking Total 10 | . 6 2 3 . 7 10 Tactical Retreats 1 | . 1 . . . . . Traps | -11 -10 -10 -10 -9 -6 -6 ------- Run | Yrd Mat Min Sub Scr Fac Low Traps Triggered 1 | . 1 . . . . . Indirectly . | . . . . . . . Trap Hack Attempts . | . . . . . . . Triggered . | . . . . . . . Disarmed . | . . . . . . . Reprogrammed . | . . . . . . . Reused . | . . . . . . . Traps Extracted . | . . . . . . . Installed . | . . . . . . . Triggered . | . . . . . . . Machines | -11 -10 -10 -10 -9 -6 -6 ---------- Run | Yrd Mat Min Sub Scr Fac Low Machines Disabled 9 | . . . . . 9 . Max in Single Turn 4 | . . . . . 4 . Machines Repaired . | . . . . . . . Machines Dismantled . | . . . . . . . Machines Sabotaged . | . . . . . . . Overloaded Fab Kills . | . . . . . . . Hacking | -11 -10 -10 -10 -9 -6 -6 --------- Run | Yrd Mat Min Sub Scr Fac Low Machines Accessed 12 | . 6 . . 2 4 . Terminals 5 | . 5 . . . . . Fabricators 1 | . . . . . 1 . Repair Stations . | . . . . . . . Recycling Units 3 | . 1 . . . 2 . Scanalyzers . | . . . . . . . Garrison Access 1 | . . . . . 1 . Total Hacks 38 | . 18 . . 8 12 . Successful 22 | . 9 . . 8 5 . Failed 16 | . 9 . . . 7 . Catastrophic 2 | . 1 . . . 1 . Database Lockouts . | . . . . . . . Manual . | . . . . . . . Terminals 15 | . 15 . . . . . Fabricators 1 | . . . . . 1 . Repair Stations . | . . . . . . . Recycling Units 10 | . 3 . . . 7 . Scanalyzers . | . . . . . . . Garrison Access 4 | . . . . . 4 . Terminal Hacks 15 | . 7 . . 8 . . Record 12 | . 4 . . 8 . . Emergency Access Points 1 | . 1 . . . . . Dispatch Records 1 | . 1 . . . . . Zone Layout 1 | . 1 . . . . . Fabricator Hacks 1 | . . . . . 1 . Network Status 1 | . . . . . 1 . Repair Station Hacks . | . . . . . . . Recycling Unit Hacks 6 | . 2 . . . 4 . Report Inventory 3 | . 1 . . . 2 . Retrieve Components 3 | . 1 . . . 2 . Scanalyzer . | . . . . . . . Garrison Access Hacks . | . . . . . . . Unauthorized Hacks . | . . . . . . . Terminals . | . . . . . . . Fabricators . | . . . . . . . Repair Stations . | . . . . . . . Recycling Units . | . . . . . . . Scanalyzers . | . . . . . . . Garrison Access . | . . . . . . . Data Cores Recovered . | . . . . . . . Used . | . . . . . . . Hacking Detections 9 | . 6 . . . 3 . Full Trace Events 3 | . 2 . . . 1 . Feedback Events . | . . . . . . . Feedback Blocked . | . . . . . . . Robot Schematics Acquired . | . . . . . . . Robots Built . | . . . . . . . Authchips . | . . . . . . . Time . | . . . . . . . Total Robot Build Rating . | . . . . . . . Part Schematics Acquired . | . . . . . . . Parts Built . | . . . . . . . Authchips . | . . . . . . . Time . | . . . . . . . Total Part Build Rating . | . . . . . . . Parts Repaired . | . . . . . . . Time . | . . . . . . . Parts Recycled . | . . . . . . . Recycled Matter . | . . . . . . . Retrieved Matter . | . . . . . . . Retrieved Components 7 | . 3 . . . 4 . Parts Scanalyzed . | . . . . . . . Part Schematics Acquired . | . . . . . . . Parts Damaged . | . . . . . . . Bothacking | -11 -10 -10 -10 -9 -6 -6 ------------ Run | Yrd Mat Min Sub Scr Fac Low Used RIF Installer . | . . . . . . . Robots Hacked . | . . . . . . . Non-combat . | . . . . . . . Combat . | . . . . . . . Robot Hacks Applied . | . . . . . . . Relay Couplers Released . | . . . . . . . Fabnet Peak Effective % . | . . . . . . . Robots Rewired . | . . . . . . . Allies Hacked . | . . . . . . . Hacks Repelled . | . . . . . . . Allies | -11 -10 -10 -10 -9 -6 -6 -------- Run | Yrd Mat Min Sub Scr Fac Low Total Allies . | . . . . . . . Largest Group . | . . . . . . . Highest-Rated Group . | . . . . . . . Highest-Rated Ally . | . . . . . . . Total Orders . | . . . . . . . Ally Attacks . | . . . . . . . Total Damage . | . . . . . . . Kills . | . . . . . . . Allies Corrupted . | . . . . . . . Allies Melted . | . . . . . . . Intel | -11 -10 -10 -10 -9 -6 -6 ------- Run | Yrd Mat Min Sub Scr Fac Low Active Infowar (turns) 191 | . . . . . 125 66 Terrain 43 | . . . . . . 43 Structural 66 | . . . . . . 66 Triangulation 125 | . . . . . 125 . Robot Analysis Total . | . . . . . . . Derelict Logs Recovered . | . . . . . . . Drone Launches . | . . . . . . . Drone Recoveries . | . . . . . . . Exploration | -11 -10 -10 -10 -9 -6 -6 ------------- Run | Yrd Mat Min Sub Scr Fac Low Turns Passed 4302 | 47 632 58 296 1956 991 322 Spaces Moved 2658 | 35 312 23 182 1416 510 180 Core 27 | 14 . . . . . 13 Treads . | . . . . . . . Legs 2434 | 21 312 23 182 1416 466 14 Wheels 195 | . . . . . 44 151 Hover 2 | . . . . . . 2 Flight . | . . . . . . . Fastest Speed 50 | 50 120 120 130 130 101 50 Average Speed 131 | 92 154 174 139 130 123 122 Slowest Speed 300 | 120 190 190 190 130 190 300 Overloaded Moves . | . . . . . . . Propulsion Burnouts . | . . . . . . . Robots Hopped . | . . . . . . . Potential Cave-ins . | . . . . . . . Cave-ins Triggered . | . . . . . . . Exploration Rate (%) 33 | 3 64 13 14 90 16 32 Regions Visited 6 Branch Regions 4 Pre-discovered Areas 1 | . . . 1 . . . Known Exits Taken . | . . . . . . . Unknown Exits Taken 6 | 1 1 1 1 1 1 . Scrap Searched 1 | . . . . . . 1 Spaces Dug 1 | . . . . . 1 . Terrain Destroyed 82 | . . . . . 82 . Melee 1 | . . . . . 1 . Projectile . | . . . . . . . AOE 81 | . . . . . 81 . Terrain Rammed . | . . . . . . . Walls Destroyed . | . . . . . . . Machines Disabled . | . . . . . . . Actions | -11 -10 -10 -10 -9 -6 -6 --------- Run | Yrd Mat Min Sub Scr Fac Low Total 3156 | 48 399 31 197 1532 711 238 Wait 162 | . 30 . . 113 19 . Move 2652 | 34 311 22 181 1415 509 180 Hop . | . . . . . . . Pick Up 60 | 7 9 1 1 1 39 2 Fast Attach 11 | 2 . . . . 3 6 Attach 45 | 4 1 1 2 . 30 7 Detach 3 | . . . . 2 1 . Swap 32 | 1 6 1 . . 21 3 Drop 22 | . 7 . . . 12 3 Fire 151 | . 35 6 13 . 69 28 Melee 8 | . . . . . 8 . Ram . | . . . . . . . Kick 8 | . . . . . . 8 Crush . | . . . . . . . Escape Stasis . | . . . . . . . Rewire 1 | . . . . 1 . . Trap . | . . . . . . . Miscellaneous 1 | . . . . . . 1 Route ------- -11/Scrapyard -10/Materials (discovered 2 exits: [*Min x2]) -10/Mines -10/Subcaves -9/Scraptown (discovered 2 exits: *Fac x2) -6/Factory -6/Lower Caves History --------- Turn | Location | Event 13 | -11/Scrapyard | Discovered new exit (range 14) 48 | -11/Scrapyard | Entered Materials 236 | -10/Materials | Discovered new exit (range 9) 400 | -10/Materials | Discovered new exit (range 6) 610 | -10/Materials | Build established: Scavenger-Mutant 680 | -10/Materials | Entered Mines 725 | -10/Mines | Discovered new exit (range 9) 738 | -10/Mines | Entered Subcaves 739 | -10/Subcaves | Approached by a straggling Scientist 743 | -10/Subcaves | Learned location of Zion (-6) 743 | -10/Subcaves | Met a Zionite searching for "candidates" 914 | -10/Subcaves | Shifting Twisted Machinery released Flamer 1023 | -10/Subcaves | Shifting Twisted Machinery released Mak. Leg 1027 | -10/Subcaves | Scientist uncovered a shortcut to Scraptown 1034 | -10/Subcaves | Entered Scraptown 1168 | -9/Scraptown | Heard Great Nut preacher, LISTEN AND RECITE! 1342 | -9/Scraptown | Build established: Mutant 1350 | -9/Scraptown | Discovered new exit (range 5) 1737 | -9/Scraptown | Visited UFD Registry 1737 | -9/Scraptown | Registered with UFD as "Matrixboard" 1800 | -9/Scraptown | Visited Symbiants 1834 | -9/Scraptown | Visited Scrapoid Research Area 1953 | -9/Scraptown | Visited Science Guys 2000 | -9/Scraptown | Visited Science Testing Area 2121 | -9/Scraptown | Visited Supply Room 2135 | -9/Scraptown | Visited Abandonware Association 2157 | -9/Scraptown | Learned abandonware demo "TRNCOAT.EXE" 2187 | -9/Scraptown | Visited Scrapoid Pod Storage 2206 | -9/Scraptown | Visited Research Penetration Think Tank 2641 | -9/Scraptown | Visited Derelict Rescue Squad 2650 | -9/Scraptown | Found DRS Beacon 2674 | -9/Scraptown | Visited LU-1G1's Boring Crew 2756 | -9/Scraptown | Visited Shadow of the Wyrm 2775 | -9/Scraptown | Visited TADAMA 2794 | -9/Scraptown | Visited Assassins FH 2847 | -9/Scraptown | Visited Bundlers 2982 | -9/Scraptown | Discovered new exit (range 5) 2990 | -9/Scraptown | Entered Factory 2990 | -6/Factory | Evolved 8 slots: Power x1, Propulsion x3, Utility x3, Weapon x1 3657 | -6/Factory | Garrison activated, responded to threat 3776 | -6/Factory | Cargo convoy interrupted 3811 | -6/Factory | Garrison activated, responded to threat 3860 | -6/Factory | Core integrity fell below 50% 3905 | -6/Factory | Lost 18 parts (2p6n4u6w) 3964 | -6/Factory | Discovered new exit (range 6) 3981 | -6/Factory | Entered Lower Caves 4201 | -6/Lower Caves | Spotted B-75 Beast 4204 | -6/Lower Caves | Activated DRS Beacon 4234 | -6/Lower Caves | Attracted the attention of an 0b10 outpost 4258 | -6/Lower Caves | Core integrity fell below 20% 4303 | -6/Lower Caves | Destroyed by Y-64 Sentinel with Wave Gun Last Messages --------------- 04291_ HV Slug penetrates Y-64 Sentinel. 04291_ HV Slug penetrates Wall. 04291_ HV Slug penetrates Earth. 04293_ Acquired Carbon-fiber Leg. 04294_ HV Slug penetrates Y-64 Sentinel. 04294_ Y-64 Sentinel suffers critical hit (Destroy). 04294_ HV Slug penetrates Wall. 04294_ HV Slug penetrates Y-64 Sentinel. 04294_ HV Slug penetrates Wall. 04296_ Acquired Antigrav System. 04297_ HV Slug penetrates Wall. 04297_ HV Slug penetrates Y-64 Sentinel. 04297_ Y-64 Sentinel suffers critical hit (Destroy). 04297_ HV Slug penetrates Wall. 04299_ Acquired Hyp. Gauss Rifle. 04300_ Wall collapses. 04300_ HV Slug penetrates Y-64 Sentinel. 04301_ HV Slug penetrates Earth. 04301_ HV Slug penetrates Y-64 Sentinel. 04301_ Y-64 Sentinel suffers critical hit (Destroy). Map ----- +----------------------------------------------------+ | ????????????####?????????????????????????????????? | | ????????????# ##????????????????????????????????? | | ???????????## ##???????????????????????????????? | | ???????????# #???????????????????????????????? | | ???????????# #???????????????????????????????? | | ??????????## ##?####?????????????###?????????? | | ?????????## ### ###???????????# ###?###???? | | ????????## #???????????# #?# # ??? | | ????????# #??????????## ### # ## | | ????????# ### ############# ## ## | | ????????# ##?# ### | | ????????### ###### | | ?????????## ##?### ############# # | | ?????????## ##### ##?? ##???##### # | | ?????###### #### ?? ######??## # | | ??######### ? ## #### ### | | ??# #### ### ##?? | | ??# | #?? ;## ##??? | | ??# ##### ## = ## #???? | | ???? ##### ######*%! ## #???? | | ???? #### ## ### #?# ##??? | | ????## ######## # #??# ##?? | | ????## %###### #?## #?? | | ???### !! ####;%% ! ; #?# ### | | ??### %% ## ; !%%! # ######### | | ??## ## ###;!%!%;;%@*%== #??????# | | ?? #######;=%% %Y;; =h[ #???# | | ? ###?### ######### #???# # | | ? ????###%& ######??????? #???## ### | | ? ????##;% #####????????? #????# ##### | | ?? ? ??##; % ????????????? ##????###??# | | ??? ## ????##;% ##??#???????#?????????## | | ??????????????##% ###????????????????????# | | ?????????????## % ######????????????????????# | | ?????????????## ##### ??#??????????????????## | | ????????????? #####?????????????????????????# | | ????????????? #####??????????????????????????# | | ???????????? ###??????#?????????????????????? | | ??????????? ###????????????????????????????? | | ???????????? ##??????????????????????????????### | | ?????????? # ??????????????????????????????????? | | ?????????? ### ???????? ?????????????????????????? | | ?????????? "# ??????????????????????????????????? | | ?????????????????????????????????????????????????? | | ?????????????????????????????????????????????????? | | ?????????????????????????????????????????????????? | | ?????????????????????????????????????????????????? | | ?????????????????????????????????????????????????? | | ?????????????????????????????????????????????????? | | ?????????????????????????????????????????????????? | +----------------------------------------------------+ Best States ------------- Heat Dissipation 65 Energy Generation 33 Energy Capacity 490 Matter Stores 300 Matter Capacity 300 Sight Range 16 Terrain Scan Range 14 Terrain Scan Density 10 Power Amplification 20 Armor Coverage 225 Resistance: KI 20 Resistance: TH 20 Resistance: EX 20 Resistance: EM 20 Resistance: I 20 Resistance: S 20 Resistance: P 20 Evasion (%) 63 Salvage Targeting 3 Offensive Hacking 10 Item Schematics ----------------- None Robot Schematics ------------------ None Fabricated ------------ Nothing Repaired ---------- Nothing Alien Tech Used ----------------- None Achievements -------------- None Challenges ------------ None Game ------ Seed ThermicCoolantHarness Manual? 0 Play Time 01:02:58 Cumulative 307.2 hours Start 2025.07.14 @ 17:27:01 End 2025.07.17 @ 20:15:32 Sessions 3 Manual Loads 0 Difficulty Adventurer Special Mode None Game No. 252 Rogue 0 Adventurer 189 Explorer 63 Win Type - Total 0 Types 0/0/0/0/0/0/0/0/0/0 Lore% 51 Gallery% 59 Achievement% 52 Wizard Run 0 Options --------- Layout 0 ASCII 0 Keyboard 0 Movement Mouse Keybinds 0 Fullscreen 2 Font 24/Smallcaps Map View 76x50 Zoom Use 0% Tactical HUD 1 Map Filters NONE Filters NONE Steam 1 RUN: b0001dd4-18c9-4cef-bbb9-6a2f4fa9c79d